bitfinex/quotes_BTCUSD_20250114
["timestamp","ask_amount","ask_price","bid_price","bid_amount"]
[1736871645899,0.08016535,96071.0,96070.0,0.01023533]
[1736871646103,0.07403653,96071.0,96070.0,0.01023533]
[1736871646303,0.13910474,96071.0,96070.0,0.01023533]
[1736871646608,0.47684982,96071.0,96070.0,0.01923533]
[1736871646815,0.44513268,96071.0,96070.0,0.01923533]
[1736871647010,0.44413268,96071.0,96070.0,0.01023533]
[1736871647214,0.44513268,96071.0,96070.0,0.01523533]
[1736871647552,0.44413268,96071.0,96070.0,0.01023533]
[1736871647946,0.44413268,96071.0,96070.0,0.01123533]
[1736871648509,0.53407417,96071.0,96070.0,0.01123533]
[1736871648714,0.63407417,96071.0,96070.0,0.02023533]
[1736871649141,0.88407417,96071.0,96070.0,1.3e-07]
[1736871649504,0.33377385,96055.0,96054.0,2.9e-07]
[1736871649726,0.71712915,96055.0,96054.0,2.9e-07]
[1736871649926,0.92135607,96055.0,96054.0,2.9e-07]
[1736871650971,0.82135607,96055.0,96054.0,2.9e-07]
[1736871651214,0.92135607,96055.0,96054.0,2.9e-07]
[1736871651423,0.82135607,96055.0,96054.0,2.9e-07]
[1736871651620,0.92135607,96055.0,96054.0,2.9e-07]
[1736871651832,0.82135607,96055.0,96054.0,2.9e-07]
[1736871652004,0.92135607,96055.0,96054.0,2.9e-07]
[1736871652233,0.74451285,96055.0,96054.0,0.05278029]
[1736871652505,0.75616827,96055.0,96054.0,0.05278029]
[1736871652717,0.85616827,96055.0,96054.0,0.05278029]
[1736871652921,0.68377985,96052.0,96051.0,2.9e-07]
[1736871653126,0.91523369,96052.0,96051.0,2.9e-07]
[1736871653406,0.92136088,96052.0,96051.0,2.9e-07]
[1736871654641,0.46713396,96052.0,96051.0,2.9e-07]
[1736871654838,0.45073396,96052.0,96051.0,2.9e-07]
[1736871655043,0.35550704,96052.0,96051.0,0.00100029]
[1736871655354,0.35750704,96052.0,96051.0,0.00100029]
[1736871655784,0.47373396,96052.0,96051.0,2.9e-07]
[1736871655992,0.57796088,96052.0,96051.0,2.9e-07]
[1736871656194,0.47973396,96052.0,96051.0,0.00100029]
[1736871656605,0.47873396,96052.0,96051.0,0.00100029]
[1736871657002,0.34490704,96052.0,96051.0,0.05302029]
[1736871657644,0.47213396,96052.0,96051.0,0.05302029]
[1736871657855,0.46713396,96052.0,96051.0,0.05202029]
[1736871658058,0.55933041,96052.0,96051.0,0.05202029]
[1736871658263,0.56233041,96052.0,96051.0,0.05202029]
[1736871658670,0.56733041,96052.0,96051.0,0.05302029]
[1736871658926,0.56433041,96052.0,96051.0,0.05202029]
[1736871659145,0.47213396,96052.0,96051.0,0.05202029]
[1736871659346,0.47613396,96052.0,96051.0,0.05302029]
[1736871659753,0.47613396,96052.0,96051.0,0.05202029]
[1736871660353,0.14068704,96052.0,96051.0,0.05202029]
[1736871660568,0.14068704,96052.0,96051.0,0.33162029]
[1736871660569,0.01512719,96052.0,96051.0,0.33162029]
[1736871660779,0.01012719,96052.0,96051.0,0.43584721]
[1736871661003,0.07403653,96060.0,96052.0,0.15]
[1736871661193,0.05152332,96059.0,96052.0,0.20202]
[1736871661400,0.05660365,96059.0,96052.0,0.20202]
[1736871661616,0.05152332,96059.0,96052.0,0.20202]
[1736871661810,0.00509046,96058.0,96052.0,0.20202]
[1736871662019,0.00509046,96058.0,96052.0,0.05202]
[1736871662220,0.00509046,96058.0,96052.0,0.05702]
[1736871662430,0.05152332,96059.0,96052.0,0.05702]
[1736871662635,0.05152332,96059.0,96052.0,0.05202]
[1736871662842,0.00508591,96058.0,96052.0,0.05202]
[1736871663047,0.00508591,96058.0,96052.0,0.05702]
[1736871663452,0.001,96059.0,96054.0,0.208216]
[1736871663701,0.001,96059.0,96058.0,0.358207]
[1736871663931,0.0008534,96071.0,96070.0,0.208181]
[1736871664177,0.0008534,96071.0,96070.0,0.487781]
[1736871664415,0.0008534,96071.0,96070.0,0.64402792]
[1736871664661,0.0008534,96106.0,96095.0,0.0498]
[1736871664956,0.0008534,96106.0,96100.0,0.41623]
[1736871665208,0.07403653,96101.0,96100.0,0.05202]
[1736871665496,0.00100267,96105.0,96101.0,0.208114]
[1736871665765,0.07403653,96102.0,96101.0,0.416228]
[1736871666030,0.0750392,96105.0,96101.0,0.260134]
[1736871666273,0.0750392,96105.0,96101.0,0.468248]
[1736871666537,0.00100267,96105.0,96101.0,0.468248]
[1736871667149,0.00100267,96105.0,96101.0,0.473248]
[1736871667365,0.00100267,96105.0,96104.0,0.15]
[1736871667569,0.00100267,96105.0,96104.0,0.20202]
[1736871669441,0.00200267,96105.0,96104.0,0.21102]
[1736871670513,0.00200267,96105.0,96104.0,0.06602]
[1736871670936,0.01251701,96105.0,96104.0,0.06602]
[1736871671170,0.01251701,96105.0,96104.0,0.32024692]
[1736871671598,0.00200267,96105.0,96104.0,0.32024692]
[1736871671799,0.05152332,96137.0,96124.0,0.208064]
[1736871672015,0.07403653,96125.0,96124.0,0.0798]
[1736871672225,0.12555985,96125.0,96124.0,0.05202]
[1736871672488,0.4558118,96125.0,96124.0,0.05202]
[1736871672687,0.34418123,96125.0,96124.0,0.05202]
[1736871674341,0.34418123,96125.0,96124.0,0.05802]
[1736871674342,0.34518123,96125.0,96124.0,0.05802]
[1736871674537,0.47140815,96125.0,96124.0,0.05202]
[1736871674923,0.47140815,96125.0,96124.0,0.05302]
[1736871675119,0.47140815,96125.0,96124.0,0.05202]
[1736871675285,0.47140815,96125.0,96124.0,0.05302]
[1736871675482,0.47640815,96125.0,96124.0,0.05302]
[1736871675701,0.47640815,96125.0,96124.0,0.05202]
[1736871675928,0.55551417,96125.0,96124.0,0.05202]
[1736871676129,0.55651417,96125.0,96124.0,0.05202]
[1736871676354,0.65651417,96125.0,96124.0,0.05202]
[1736871676557,0.57640815,96125.0,96124.0,0.05202]
[1736871676763,0.47640815,96125.0,96124.0,0.05202]
[1736871676998,0.35018123,96125.0,96124.0,0.05202]
[1736871677135,0.45740815,96125.0,96124.0,0.05202]
[1736871677335,0.07403653,96106.0,96105.0,0.0498]
[1736871677617,0.08457712,96106.0,96105.0,0.0498]
[1736871678856,0.08457712,96106.0,96105.0,0.10382]
[1736871679046,0.13610044,96106.0,96105.0,0.10382]
[1736871679247,0.13610044,96106.0,96105.0,0.10482]
[1736871679705,0.13610044,96106.0,96105.0,0.10382]
[1736871679706,0.08457712,96106.0,96105.0,0.10382]
[1736871680104,0.13610044,96106.0,96105.0,0.10482]
[1736871680308,0.13610044,96106.0,96105.0,0.10282]
[1736871680517,0.13710044,96106.0,96105.0,0.10282]
[1736871680956,0.08557712,96106.0,96105.0,0.10282]
[1736871681165,0.08557712,96106.0,96105.0,0.10582]
[1736871681921,0.08457712,96106.0,96105.0,0.10182]
[1736871682129,0.08457712,96106.0,96105.0,0.10882]
[1736871682554,0.13610044,96106.0,96105.0,0.10882]
[1736871682720,0.13610044,96106.0,96105.0,0.10682]
[1736871682919,0.08457712,96106.0,96105.0,0.10982]
[1736871683522,0.08457712,96106.0,96105.0,0.10682]
[1736871683779,0.01054059,96106.0,96105.0,0.10282]
[1736871683948,0.07403653,96117.0,96114.0,0.208086]
[1736871684153,0.00906519,96116.0,96115.0,0.0832]
[1736871684364,0.00906519,96116.0,96105.0,0.0528]
[1736871684365,0.07403653,96108.0,96105.0,0.0528]
[1736871684578,0.00909186,96107.0,96105.0,0.0528]
[1736871684792,0.07403653,96106.0,96105.0,0.0508]
[1736871684997,0.13594725,96106.0,96105.0,0.0498]
[1736871685224,0.13464659,96106.0,96105.0,0.0498]
[1736871685421,0.07403653,96090.0,96089.0,0.0453]
[1736871685631,0.07403653,96090.0,96057.0,0.04847668]
[1736871685632,0.07403653,96077.0,96076.0,0.0453]
[1736871686046,0.08304661,96077.0,96076.0,0.0453]
[1736871686256,0.13587099,96077.0,96076.0,0.0453]
[1736871686456,0.13456993,96077.0,96076.0,0.0453]
[1736871686660,0.08304661,96077.0,96076.0,0.04544957]
[1736871687088,0.00901008,96077.0,96076.0,0.04544957]
[1736871687552,0.07403653,96084.0,96077.0,0.208166]
[1736871687923,0.07403653,96084.0,96076.0,0.04844957]
[1736871688185,0.07403653,96078.0,96076.0,0.04544957]
[1736871688681,0.00988987,96077.0,96076.0,0.05144957]
[1736871688923,0.00988987,96077.0,96076.0,0.04744957]
[1736871688924,0.00888987,96077.0,96076.0,0.04744957]
[1736871689173,0.07403653,96078.0,96076.0,0.04744957]
[1736871689174,0.07403653,96078.0,96076.0,0.04544957]
[1736871689433,0.07403653,96078.0,96077.0,0.00179151]
[1736871689869,0.07403653,96078.0,96077.0,0.05381151]
[1736871690349,0.08293792,96078.0,96077.0,0.05381151]
[1736871691033,0.13446124,96078.0,96077.0,0.05381151]
[1736871691252,0.08293792,96078.0,96077.0,0.05381151]
[1736871691502,0.08293792,96078.0,96077.0,0.05981151]
[1736871692124,0.08293792,96078.0,96077.0,0.05381151]
[1736871692719,0.00890139,96078.0,96077.0,0.05581151]
[1736871692940,0.07403653,96078.0,96077.0,0.05881151]
[1736871693181,0.07403653,96084.0,96078.0,0.208164]
[1736871693366,0.208121,96098.0,96077.0,0.05581151]
[1736871693367,0.07403653,96083.0,96077.0,0.05581151]
[1736871693576,0.07403653,96083.0,96078.0,0.05202]
[1736871693828,0.33372385,96078.0,96077.0,0.05781151]
[1736871694137,0.33372385,96078.0,96077.0,0.00179151]
[1736871694629,0.33372385,96078.0,96077.0,0.00579151]
[1736871694849,0.34265076,96078.0,96077.0,0.00179151]
[1736871695049,0.34365076,96078.0,96077.0,0.00179151]
[1736871695396,0.34265076,96078.0,96077.0,0.00179151]
[1736871695623,0.34365076,96078.0,96077.0,0.00179151]
[1736871696182,0.34365076,96078.0,96077.0,0.05381151]
[1736871697452,0.08396344,96078.0,96077.0,0.05381151]
[1736871698468,0.08296344,96078.0,96077.0,0.05381151]
[1736871698876,0.08396344,96078.0,96077.0,0.05381151]
[1736871699206,0.08296344,96078.0,96077.0,0.05381151]
[1736871699445,0.3439518,96078.0,96077.0,0.05381151]
[1736871699649,0.34265076,96078.0,96077.0,0.05781151]
[1736871699862,0.34265076,96078.0,96077.0,0.05981151]
[1736871700268,0.34265076,96078.0,96077.0,0.05781151]
[1736871700793,0.34365076,96078.0,96077.0,0.05381151]
[1736871700981,0.34765076,96078.0,96077.0,0.05381151]
[1736871701417,0.52751237,96078.0,96077.0,0.05381151]
[1736871701640,0.53151237,96078.0,96077.0,0.05381151]
[1736871701865,0.53151237,96078.0,96076.0,8e-08]
[1736871701866,0.39855985,96077.0,96076.0,8e-08]
[1736871702082,0.60278677,96077.0,96076.0,8e-08]
[1736871702313,0.61166978,96077.0,96076.0,8e-08]
[1736871702524,0.7158967,96077.0,96076.0,8e-08]
[1736871702725,0.51838978,96077.0,96076.0,8e-08]
[1736871703783,0.52238978,96077.0,96076.0,8e-08]
[1736871704516,0.53138978,96077.0,96076.0,0.00100008]
[1736871704706,0.63138978,96077.0,96076.0,0.00100008]
[1736871704940,0.62238978,96077.0,96076.0,8e-08]
[1736871705142,0.7306167,96077.0,96076.0,0.00100008]
[1736871705313,0.7346167,96077.0,96076.0,0.00100008]
[1736871706416,0.7306167,96077.0,96076.0,0.00100008]
[1736871706618,0.7336167,96077.0,96076.0,0.00100008]
[1736871706996,0.6336167,96077.0,96076.0,0.00100008]
[1736871707220,0.52938978,96077.0,96076.0,0.00100008]
[1736871709870,0.52266978,96077.0,96076.0,0.00100008]
[1736871710067,0.52938978,96077.0,96076.0,0.00100008]
[1736871710465,0.39966978,96077.0,96076.0,0.00100008]
[1736871710689,0.25638978,96077.0,96076.0,0.00100008]
[1736871710893,0.37853037,96077.0,96076.0,0.00100008]
[1736871711120,0.37853037,96077.0,96051.0,2.9e-07]
[1736871711121,0.35677785,96053.0,96051.0,2.9e-07]
[1736871711333,0.46100477,96053.0,96052.0,0.05396148]
[1736871711548,0.46975813,96053.0,96052.0,0.05396148]
[1736871711783,0.34253121,96053.0,96052.0,0.05396148]
[1736871712428,0.34353121,96053.0,96052.0,0.05396148]
[1736871712609,0.34753121,96053.0,96052.0,0.05396148]
[1736871712955,0.34653121,96053.0,96052.0,0.05396148]
[1736871713582,0.52772545,96053.0,96052.0,0.05396148]
[1736871713797,0.34653121,96053.0,96052.0,0.05396148]
[1736871714208,0.44675813,96053.0,96052.0,0.05396148]
[1736871714611,0.44875813,96053.0,96052.0,0.05396148]
[1736871714835,0.47175813,96053.0,96052.0,0.05396148]
[1736871715043,0.62175813,96053.0,96052.0,0.05396148]
[1736871715252,0.82598505,96053.0,96052.0,0.05396148]
[1736871716379,0.82798505,96053.0,96052.0,0.05396148]
[1736871716989,1.00988505,96053.0,96052.0,4.8e-07]
[1736871717306,1.00788505,96053.0,96052.0,4.8e-07]
[1736871717671,1.01388505,96053.0,96052.0,0.00100048]
[1736871718066,0.91388505,96053.0,96052.0,0.00100048]
[1736871718298,1.01388505,96053.0,96052.0,0.00100048]
[1736871718687,0.91388505,96053.0,96052.0,0.00100048]
[1736871718888,0.72775813,96053.0,96052.0,0.00100048]
[1736871719095,0.58447813,96053.0,96052.0,0.00100048]
[1736871719396,0.43295481,96053.0,96052.0,0.00100048]
[1736871719607,0.45275813,96053.0,96052.0,0.00100048]
[1736871719815,0.35153121,96053.0,96052.0,0.00100048]
[1736871720638,0.55724738,96053.0,96052.0,0.00100048]
[1736871721281,0.55424738,96053.0,96052.0,0.00100048]
[1736871721658,0.55624738,96053.0,96052.0,0.00100048]
[1736871722403,0.47775813,96053.0,96052.0,0.00100048]
[1736871722827,0.35053121,96053.0,96052.0,0.00100048]
[1736871723034,0.09078989,96053.0,96052.0,0.00100048]
[1736871723477,0.01675336,96053.0,96052.0,0.00100048]
[1736871723696,0.01368258,96053.0,96052.0,0.00100048]
[1736871723912,0.002,96053.0,96052.0,4.8e-07]
[1736871724131,0.00768267,96053.0,96052.0,0.35822048]
[1736871724366,0.00568651,96053.0,96052.0,0.1042274]
[1736871724568,0.07403653,96063.0,96054.0,0.208216]
[1736871724772,0.07403653,96063.0,96057.0,0.208207]
[1736871724925,0.05237672,96077.0,96052.0,0.10622692]
[1736871725130,0.0008534,96077.0,96058.0,0.2312]
[1736871725331,0.07403653,96072.0,96062.0,0.15]
[1736871725534,0.00130109,96071.0,96060.0,0.208201]
[1736871725738,0.07403653,96072.0,96064.0,0.208193]
[1736871726038,0.00475314,96071.0,96061.0,0.15]
[1736871726232,0.00475314,96071.0,96062.0,0.208198]
[1736871726439,0.00475314,96071.0,96061.0,0.15]
[1736871726440,0.21293214,96071.0,96061.0,0.15]
[1736871726758,0.00475314,96071.0,96066.0,0.208189]
[1736871726967,0.00475314,96071.0,96060.0,0.00777592]
[1736871727159,0.001,96063.0,96060.0,0.21597692]
[1736871727499,0.12555985,96061.0,96060.0,0.05204512]
[1736871727924,0.07877145,96061.0,96060.0,0.05204512]
[1736871728202,0.00473492,96061.0,96060.0,0.05204512]
[1736871728441,0.07403653,96086.0,96061.0,0.27967668]
[1736871728645,0.07403653,96087.0,96076.0,0.403468]
[1736871729096,0.07403653,96087.0,96076.0,0.45551312]
[1736871729310,0.208101,96107.0,96076.0,0.55974004]
[1736871729514,0.05152332,96098.0,96076.0,0.64094004]
[1736871729702,0.07403653,96087.0,96076.0,0.64094004]
[1736871730131,0.07403653,96091.0,96076.0,0.65153053]
[1736871730344,0.07403653,96104.0,96094.0,0.208128]
[1736871730554,0.05237642,96105.0,96095.0,0.1265]
[1736871730555,0.07403653,96101.0,96095.0,0.1265]
[1736871731167,0.07403653,96101.0,96095.0,0.17854512]
[1736871731586,0.07403653,96101.0,96096.0,0.208125]
[1736871731785,0.07415586,96101.0,96096.0,0.26017012]
[1736871731960,0.07415586,96101.0,96096.0,0.05204512]
[1736871732771,0.07415586,96101.0,96096.0,0.05304512]
[1736871733172,0.07415586,96101.0,96097.0,0.208122]
[1736871733173,0.00011933,96101.0,96097.0,0.208122]
[1736871733373,0.00011933,96101.0,96098.0,0.15]
[1736871733577,0.00011933,96101.0,96100.0,0.15]
[1736871733762,0.0008531,96105.0,96103.0,0.04847668]
[1736871733955,0.0008531,96105.0,96104.0,0.38072692]
[1736871734567,0.0008531,96105.0,96104.0,0.48124872]
[1736871735185,0.0008536,96125.0,96122.0,0.208066]
[1736871735392,0.00097296,96125.0,96123.0,0.15]
[1736871735605,0.00097296,96125.0,96124.0,0.358064]
[1736871736029,0.00097296,96125.0,96124.0,0.46229092]
[1736871736243,0.00097296,96125.0,96124.0,0.51433604]
[1736871736458,0.00097296,96125.0,96124.0,0.64213604]
[1736871736899,0.00097296,96125.0,96124.0,0.65273541]
[1736871737497,0.00097296,96125.0,96124.0,0.65673541]
[1736871738398,0.00197296,96125.0,96124.0,0.66473541]
[1736871739019,0.00197296,96125.0,96124.0,0.34184512]
[1736871739500,0.00197296,96125.0,96124.0,0.44607204]
[1736871740338,0.00197296,96125.0,96124.0,0.11094512]
[1736871740583,0.00197296,96125.0,96124.0,0.06404512]
[1736871740584,0.12753281,96125.0,96124.0,0.06404512]
[1736871740815,0.51063972,96125.0,96124.0,0.06404512]
[1736871741026,0.61970657,96125.0,96124.0,0.02547866]
[1736871741241,0.26738909,96125.0,96124.0,0.02547866]
[1736871741460,0.25342657,96125.0,96124.0,0.02147866]
[1736871741669,0.29357968,96125.0,96124.0,0.01347866]
[1736871741876,0.30542707,96125.0,96124.0,0.01447866]
[1736871742083,0.28242707,96125.0,96124.0,0.01447866]
[1736871742299,0.38338598,96125.0,96124.0,0.01447866]
[1736871742499,0.50638598,96125.0,96124.0,0.01447866]
[1736871742717,0.75638598,96125.0,96124.0,6.6e-07]
[1736871743125,0.75638598,96125.0,96073.0,0.208173]
[1736871743126,0.07403653,96086.0,96077.0,0.208165]
[1736871744070,0.07403653,96095.0,96082.0,0.15]
[1736871744244,0.07403653,96095.0,96087.0,0.208142]
[1736871744450,0.07403653,96097.0,96087.0,0.208142]
[1736871744650,0.07403653,96095.0,96087.0,0.208142]
[1736871744880,0.07403653,96106.0,96091.0,0.208134]
[1736871745088,0.00476553,96094.0,96091.0,0.31236092]
[1736871745298,0.07403653,96113.0,96095.0,0.208127]
[1736871745496,0.10508052,96125.0,96094.0,0.15]
[1736871745497,0.07403653,96124.0,96100.0,0.20557797]
[1736871745699,0.0008536,96125.0,96117.0,0.208078]
[1736871745904,0.0008536,96125.0,96111.0,0.15]
[1736871746100,0.0008536,96125.0,96117.0,0.05204512]
[1736871747329,0.0008536,96125.0,96122.0,0.208068]
[1736871747330,0.0018536,96125.0,96122.0,0.208068]
[1736871747485,0.0008536,96125.0,96122.0,0.26011312]
[1736871747691,0.0018536,96125.0,96124.0,0.208064]
[1736871747907,0.0018536,96125.0,96124.0,0.44523604]
[1736871748094,0.0018536,96125.0,96124.0,0.59523604]
[1736871749391,0.0008536,96125.0,96124.0,0.59523604]
[1736871749600,0.0008536,96125.0,96124.0,0.60023604]
[1736871749601,0.0018536,96125.0,96124.0,0.60023604]
[1736871750011,0.0008536,96125.0,96124.0,0.59523604]
[1736871750231,0.0018536,96125.0,96124.0,0.59923604]
[1736871750443,0.0018536,96125.0,96124.0,0.64771272]
[1736871750703,0.0018536,96125.0,96124.0,0.67867619]
[1736871751504,0.0008536,96150.0,96149.0,0.20801]
[1736871751708,0.00100322,96150.0,96149.0,0.26005512]
[1736871752306,0.00100322,96150.0,96149.0,0.41005512]
[1736871752981,0.00200322,96150.0,96149.0,0.56918204]
[1736871753163,0.00200322,96150.0,96149.0,0.65408204]
[1736871753368,0.00200322,96150.0,96149.0,0.70255872]
[1736871754220,0.00100322,96150.0,96149.0,0.69055872]
[1736871754416,0.00100322,96150.0,96149.0,0.70429168]
[1736871754637,0.00200322,96150.0,96149.0,0.71329168]
[1736871754855,0.0008534,96168.0,96157.0,0.25646968]
[1736871755059,0.0008534,96168.0,96157.0,0.58870519]
[1736871755060,0.00135205,96158.0,96157.0,0.58870519]
[1736871755286,0.0008541,96193.0,96181.0,0.02596347]
[1736871755491,0.00100355,96183.0,96182.0,0.10422692]
[1736871755699,0.00100355,96183.0,96181.0,0.05204512]
[1736871755904,0.07403653,96182.0,96181.0,0.05204512]
[1736871756114,0.00100355,96183.0,96182.0,0.357939]
[1736871756324,0.00100355,96183.0,96182.0,0.51421104]
[1736871756744,0.00100355,96183.0,96182.0,0.51621104]
[1736871757156,0.00100355,96183.0,96182.0,0.05204512]
[1736871757360,0.00100355,96183.0,96182.0,0.05304512]
[1736871757514,0.00100355,96183.0,96182.0,0.05204512]
[1736871758362,0.00100355,96183.0,96182.0,0.05404512]
[1736871758932,0.00100355,96183.0,96182.0,0.05604512]
[1736871759129,0.00100355,96183.0,96182.0,0.31027204]
[1736871759381,0.00100355,96183.0,96182.0,0.35517204]
[1736871759591,0.00100355,96183.0,96182.0,0.43261219]
[1736871759830,0.00100355,96183.0,96182.0,1.92761219]
[1736871760000,0.00100355,96183.0,96182.0,1.92961219]
[1736871760173,0.00100355,96183.0,96182.0,1.93361219]
[1736871760374,0.00100355,96183.0,96182.0,1.94011405]
[1736871760604,0.00100355,96183.0,96182.0,2.01901405]
[1736871760813,0.0004,96189.0,96188.0,0.45536615]
[1736871760979,0.0004,96189.0,96188.0,0.61163819]
[1736871761556,0.0008531,96202.0,96192.0,0.07444015]
[1736871761757,0.0008531,96202.0,96192.0,0.40371219]
[1736871761966,0.0008531,96202.0,96197.0,0.07444015]
[1736871762179,0.0008531,96202.0,96197.0,0.42761219]
[1736871762417,0.26017492,96247.0,96228.0,0.207839]
[1736871762618,0.00054945,96229.0,96228.0,0.36411104]
[1736871763663,0.00054945,96229.0,96228.0,0.36811104]
[1736871763868,0.00054945,96229.0,96228.0,0.41301104]
[1736871764278,0.00054945,96229.0,96228.0,0.56101104]
[1736871764493,0.00054945,96229.0,96228.0,0.56401104]
[1736871765133,0.00054945,96229.0,96228.0,0.57001104]
[1736871766742,0.00054945,96229.0,96228.0,0.58019817]
[1736871767679,0.0008536,96247.0,96246.0,0.3578]
[1736871767893,0.0008536,96247.0,96246.0,0.46202692]
[1736871768052,0.0008536,96247.0,96246.0,0.51407204]
[1736871768246,0.00076165,96247.0,96246.0,0.51407204]
[1736871768469,0.00076165,96247.0,96246.0,0.64554872]
[1736871768875,0.00076165,96247.0,96246.0,0.69274872]
[1736871769078,0.00076165,96247.0,96246.0,0.71342186]
[1736871769304,0.00076165,96247.0,96246.0,2.19274872]
[1736871769828,0.00076165,96247.0,96246.0,2.23713817]
[1736871769993,0.00076165,96247.0,96246.0,2.24093817]
[1736871770226,0.00076165,96247.0,96246.0,2.24993817]
[1736871771673,0.00076165,96247.0,96246.0,0.74993817]
[1736871772346,0.0004,96269.0,96246.0,0.74993817]
[1736871772347,0.0004,96269.0,96268.0,0.45342968]
[1736871772581,0.00089827,96269.0,96268.0,0.71866519]
[1736871773052,0.00089827,96269.0,96268.0,3.01661019]
[1736871773300,0.0008534,96280.0,96279.0,0.07444015]
[1736871773542,0.00100275,96280.0,96279.0,0.59524119]
[1736871773789,0.00100275,96280.0,96279.0,0.83063719]
[1736871774031,0.00100275,96280.0,96279.0,0.91363719]
[1736871774267,0.00100275,96280.0,96279.0,0.72544119]
[1736871774494,0.00100275,96280.0,96279.0,0.73444119]
[1736871774949,0.00100275,96280.0,96279.0,0.72764119]
[1736871775185,0.00100275,96280.0,96279.0,0.73444119]
[1736871775413,0.00100275,96280.0,96279.0,0.66342404]
[1736871775632,0.00100275,96280.0,96279.0,0.65442404]
[1736871775852,0.00100275,96280.0,96279.0,0.66142404]
[1736871776295,0.00100275,96280.0,96279.0,0.66342404]
[1736871776499,0.00100275,96280.0,96279.0,0.58042404]
[1736871776939,0.00100275,96280.0,96279.0,0.57142404]
[1736871777146,0.00100275,96280.0,96279.0,0.57742404]
[1736871777466,0.00100275,96280.0,96279.0,0.58642404]
[1736871778658,0.00100275,96280.0,96279.0,0.31527204]
[1736871778845,0.00100275,96280.0,96279.0,0.08468012]
[1736871779027,0.00100275,96280.0,96279.0,0.08868012]
[1736871779230,0.00100275,96280.0,96279.0,0.07404512]
[1736871779470,0.05252607,96280.0,96279.0,0.05204512]
[1736871779847,0.05252607,96280.0,96279.0,0.05904512]
[1736871780044,0.1265626,96280.0,96279.0,0.05304512]
[1736871780334,0.2042626,96280.0,96279.0,0.05204512]
[1736871780531,0.2042626,96280.0,96279.0,0.05304512]
[1736871780750,0.15273928,96280.0,96279.0,0.05304512]
[1736871780959,0.1265626,96280.0,96279.0,0.05604512]
[1736871781166,0.1265626,96280.0,96279.0,0.004]
[1736871782189,0.1265626,96280.0,96279.0,0.001]
[1736871782397,0.25926332,96274.0,96256.0,0.041612]
[1736871782594,0.00100275,96280.0,96257.0,0.10422692]
[1736871782799,0.07503928,96280.0,96279.0,0.001]
[1736871783000,0.00100275,96280.0,96279.0,0.001]
[1736871783207,0.00100275,96280.0,96269.0,0.15]
[1736871783404,0.00100275,96280.0,96269.0,0.10422692]
[1736871783606,0.05152332,96279.0,96269.0,0.04878]
[1736871784226,0.05143139,96279.0,96269.0,0.04878]
[1736871784458,0.05243414,96280.0,96269.0,0.04878]
[1736871784602,0.25916039,96279.0,96269.0,0.04878]
[1736871784805,0.05143139,96270.0,96269.0,0.04878]
[1736871785047,0.12546792,96270.0,96269.0,0.04878]
[1736871785846,0.07403653,96270.0,96269.0,0.04878]
[1736871786448,0.41645875,96280.0,96278.0,0.207731]
[1736871786449,0.00100275,96280.0,96278.0,0.207731]
[1736871786625,0.00100275,96280.0,96279.0,0.34849553]
[1736871786822,0.00100275,96280.0,96279.0,0.423239]
[1736871787109,0.00100275,96280.0,96279.0,1.923239]
[1736871787745,0.00100275,96280.0,96279.0,1.85270692]
[1736871787945,0.00100275,96280.0,96279.0,1.8727591]
[1736871788157,0.00100275,96280.0,96279.0,1.72283218]
[1736871788367,0.00100275,96280.0,96279.0,0.07283218]
[1736871789395,0.00100275,96280.0,96279.0,0.07383218]
[1736871789620,0.07503928,96280.0,96279.0,0.07383218]
[1736871789826,0.07503928,96280.0,96279.0,0.05278]
[1736871790036,0.12647067,96280.0,96279.0,0.05278]
[1736871790253,0.12647067,96280.0,96279.0,0.05378]
[1736871790507,0.16172921,96280.0,96279.0,0.05378]
[1736871790709,0.16172921,96280.0,96279.0,0.05478]
[1736871790964,0.12647067,96280.0,96279.0,0.05378]
[1736871791383,0.07503928,96280.0,96279.0,0.04978]
[1736871791588,0.12647067,96280.0,96279.0,0.04978]
[1736871791791,0.12647067,96280.0,96279.0,0.05078]
[1736871792044,0.12647067,96280.0,96279.0,0.04878]
[1736871792939,0.18195956,96280.0,96279.0,0.04878]
[1736871793137,0.25369759,96280.0,96279.0,0.04878]
[1736871793359,0.62859759,96280.0,96279.0,0.04878]
[1736871793844,0.63900704,96280.0,96279.0,0.04878]
[1736871794046,0.05143139,96259.0,96258.0,0.00774303]
[1736871794267,0.53816684,96259.0,96258.0,0.00774303]
[1736871794484,0.41093992,96259.0,96258.0,0.00774303]
[1736871794935,0.12546792,96259.0,96258.0,0.00774303]
[1736871795348,0.07403653,96250.0,96243.0,0.0457]
[1736871795565,0.07403653,96250.0,96243.0,0.14992692]
[1736871795784,0.05143139,96245.0,96243.0,0.0457]
[1736871796186,0.05143139,96245.0,96234.0,0.15]
[1736871796602,0.05143139,96245.0,96234.0,0.15049827]
[1736871796808,0.05143139,96245.0,96235.0,0.02017408]
[1736871797014,0.05143139,96240.0,96235.0,0.02017408]
[1736871797224,0.05143139,96236.0,96235.0,0.07213374]
[1736871797866,0.12546792,96236.0,96235.0,0.07213374]
[1736871798077,0.12546792,96236.0,96235.0,0.05971892]
[1736871798508,0.12546792,96236.0,96235.0,0.06071892]
[1736871798904,0.31582368,96236.0,96235.0,0.06071892]
[1736871799108,0.31452473,96236.0,96235.0,0.05295966]
[1736871799803,0.12546792,96236.0,96235.0,0.05295966]
[1736871800007,0.12546792,96236.0,96235.0,0.05195966]
[1736871800241,0.25925339,96236.0,96235.0,0.05195966]
[1736871800444,0.33328992,96236.0,96235.0,0.05195966]
[1736871801413,0.46051684,96236.0,96235.0,0.05195966]
[1736871802084,0.33328992,96236.0,96235.0,0.05195966]
[1736871802565,0.46051684,96236.0,96235.0,0.05195966]
[1736871802811,0.33328992,96236.0,96235.0,0.05195966]
[1736871803052,0.12546792,96236.0,96235.0,0.05195966]
[1736871807167,0.12546792,96236.0,96235.0,0.05295966]
[1736871808257,0.12546792,96236.0,96235.0,0.05195966]
[1736871808657,0.05143139,96246.0,96235.0,0.05195966]
[1736871808898,0.05143139,96246.0,96236.0,0.25377797]
[1736871809115,0.05143139,96246.0,96237.0,0.20782]
[1736871809333,0.05143139,96246.0,96238.0,0.31204492]
[1736871809537,0.05143139,96252.0,96239.0,0.207815]
[1736871809738,0.05143139,96247.0,96239.0,0.05195966]
[1736871809948,0.25924439,96240.0,96239.0,0.05195966]
[1736871810951,0.25924439,96240.0,96239.0,0.05395966]
[1736871811173,0.25924439,96240.0,96239.0,0.05195966]
[1736871811637,0.05143139,96240.0,96239.0,0.05195966]
[1736871813219,0.05143139,96240.0,96239.0,0.05295966]
[1736871813537,0.05143139,96240.0,96239.0,0.05195966]
[1736871813681,0.12546792,96243.0,96239.0,0.05595966]
[1736871813893,0.05143139,96240.0,96239.0,0.05595966]
[1736871814100,0.05143139,96240.0,96239.0,0.05495966]
[1736871814295,0.07403653,96243.0,96239.0,0.05495966]
[1736871814498,0.05143139,96240.0,96239.0,0.05395966]